Cogmind - Beta 13 @@@ ROGUE MODE // 2024.04.01 @ 12:54:10 Player: weedlord420 Result: Destroyed by Y-45 Defender with Heavy Assault Rifle Performance ------------- Evolutions (0) 0 Regions Visited (3) 600 Robots Destroyed (32) 160 Value Destroyed (746) 746 Prototype IDs (2) 40 Alien Tech Used (0) 0 Bonus (0) 0 TOTAL SCORE: 1546 Bonus ------- None Cogmind --------- Core Integrity 0/250 Matter 153/300 Energy 200/200 System Corruption 0% Temperature Cool (0) Movement Treading (160) Location -10/Subcaves Parts ------- > --- POWER (1) -------- Subdweller Power Source > --- PROPULSION (2) --- Light Treads Light Treads > --- UTILITY (2) ------ Small Storage Unit Makeshift Light Armor Plating > --- WEAPON (2) ------- Subdweller Machine Gun Grenade Launcher > --- INVENTORY (8) ---- Light Treads Terrain Scan Processor Scrap Shield Light Cannon Grenade Launcher Grenade Launcher Scrap Shield Fragment (30) Peak State ------------ > --- POWER ------------ Subdweller Power Source > --- PROPULSION ------- Light Treads Light Treads > --- UTILITY ---------- Small Storage Unit Makeshift Light Armor Plating > --- WEAPON ----------- Subdweller Machine Gun Grenade Launcher > --- INVENTORY -------- Light Treads Terrain Scan Processor Scrap Shield Light Cannon Grenade Launcher Grenade Launcher Scrap Shield Fragment [Rating: 13] Favorites ----------- Power Light Nuclear Core Engine Light Ion Engine Power Core Light Nuclear Core Propulsion Light Treads Treads Light Treads Leg Aluminum Leg Utility Small Storage Unit Device Improved Terrain Scanner Storage Small Storage Unit Processor Signal Interpreter Protection Makeshift Light Armor Plating Weapon Light Cannon Energy Gun Small Laser Ballistic Gun Subdweller Machine Gun Ballistic Cannon Light Cannon Launcher Grenade Launcher Build | -11 -10 -10 -10 ------- Run | Yrd Mat Min Sub Slots Evolved . | . . . . Power . | . . . . Propulsion . | . . . . Utility . | . . . . Weapon . | . . . . Parts Attached 32 | 5 17 1 9 Power 3 | . 2 . 1 Engine 2 | . 1 . 1 Core 1 | . 1 . . Reactor . | . . . . Propulsion 8 | 2 4 . 2 Treads 6 | . 4 . 2 Leg 2 | 2 . . . Wheel . | . . . . Hover . | . . . . Flight . | . . . . Utility 6 | 1 3 1 1 Device 3 | . 2 1 . Storage 1 | 1 . . . Processor 1 | . 1 . . Hackware . | . . . . Protection 1 | . . . 1 Artifact . | . . . . Weapon 15 | 2 8 . 5 Energy Gun 5 | 2 3 . . Energy Cannon . | . . . . Ballistic Gun 1 | . . . 1 Ballistic Cannon 4 | . 2 . 2 Launcher 5 | . 3 . 2 Special Weapon . | . . . . Impact Weapon . | . . . . Slashing Weapon . | . . . . Piercing Weapon . | . . . . Special Melee Weapon . | . . . . Unidentified Prototypes . | . . . . Parts Lost 7 | . 1 . 6 Power 1 | . . . 1 Propulsion 2 | . . . 2 Utility 1 | . . . 1 Weapon 3 | . 1 . 2 Highest Loss Streak 5 | . 1 . 5 To Critical Strikes . | . . . . Average Slot Usage (%) 94 | . 96 100 86 Engine 1 | . 2 . 1 Core 10 | . 10 14 6 Treads 26 | . 24 28 26 Leg 1 | . 3 . . Device 10 | . 9 13 7 Storage 14 | . 14 14 14 Processor 1 | . 3 . . Energy Gun 3 | . 7 . . Ballistic Gun 1 | . . . 6 Ballistic Cannon 19 | . 16 28 13 Launcher 3 | . 2 . 8 Naked Turns . | . . . . Heaviest Build 21 | 8 17 17 21 Greatest Support 40 | 20 40 40 40 Greatest Overweight (x) . | . . . . Average Overweight (x) . | . . . . Largest Inventory Capacity 8 | 8 8 8 8 Average Capacity 7 | 6 8 8 8 Most Carried 8 | 5 8 8 8 Average Carried 7 | 3 7 7 7 Final Capacity 8 | 8 8 8 8 Final Carried 8 | 4 8 8 8 Class Distribution -------------------- 100% | Mutant Dominant Class ---------------- Mutant | -10/Materials Mutant | -10/Mines Mutant | -10/Subcaves Resources | -11 -10 -10 -10 ----------- Run | Yrd Mat Min Sub Matter Collected 948 | 250 420 28 250 Remotely . | . . . . Salvage Created 715 | 59 543 . 113 Parts 62 | 7 45 . 10 Haulers Intercepted 2 | . 2 . . Recyclers Shooed . | . . . . Parts Field Recycled . | . . . . Retrieved Matter . | . . . . Parts Self-Destructed 4 | . . . 4 Prevented . | . . . . Kills | -11 -10 -10 -10 ------- Run | Yrd Mat Min Sub Combat Hostiles Destroyed 21 | . 13 . 8 Guns 3 | . 3 . . Cannons 11 | . 7 . 4 AOE 7 | . 3 . 4 Classes Destroyed 7 | 1 5 . 1 Builder 2 | . 2 . . Tunneler 4 | 3 1 . . Hauler 2 | . 2 . . Watcher 3 | . 3 . . Swarmer 6 | . 3 . 3 Grunt 10 | . 10 . . Subdweller 5 | . . . 5 Best Kill Streak 5 | 3 5 . 3 Combat Bots Only 4 | . 4 . 3 Max Kills in Single Turn 3 | 1 3 . 1 Gunslinging . | . . . . Exploded 2 | . 2 . 1 Melee . | . . . . Uniques/NPCs Destroyed . | . . . . Combat | -11 -10 -10 -10 -------- Run | Yrd Mat Min Sub Hostile Shots Fired 147 | . 56 . 91 Missed 49 | . 16 . 33 Damage Taken 1528 | . 469 . 1059 Core 259 | . 91 . 168 Absorbed by Shields . | . . . . Regen/Repaired (Parts) 78 | . 78 . . Core Remaining (%) 100 | 100 . . . Volleys Fired 104 | 3 63 2 36 Largest 2 | 2 2 2 2 Hottest 80 | 80 80 70 70 Shots Fired 189 | 6 110 4 69 Gun 67 | 6 50 . 11 Cannon 105 | . 55 4 46 Launcher 17 | . 5 . 12 Special . | . . . . Kinetic 116 | . 55 4 57 Thermal 32 | 3 29 . . Explosive 17 | . 5 . 12 Electromagnetic 24 | 3 21 . . Robot Hit Streak 13 | 4 7 5 13 Robot Miss Streak 5 | . 4 . 5 Penetration Max . | . . . . Secondary Targets . | . . . . Shots Hit Robots 118 | 4 63 4 47 Core Hits 46 | 3 29 . 14 Critical Kills . | . . . . Critical Parts Destroyed . | . . . . Critical Strikes 2 | . 1 . 1 Blast 1 | . . . 1 Corrupt 1 | . 1 . . Melee Attacks . | . . . . Impact . | . . . . Slashing . | . . . . Piercing . | . . . . Sneak Attacks . | . . . . Combat Hostiles . | . . . . Follow-up Attacks . | . . . . Damage Inflicted 2261 | 81 1313 78 789 Guns 582 | 43 398 . 141 Cannons 886 | . 504 78 304 Explosions 791 | 38 409 . 344 Melee . | . . . . Ramming 2 | . 2 . . Kinetic 1027 | . 504 78 445 Thermal 352 | 38 314 . . Explosive 673 | . 329 . 344 Electromagnetic 207 | 43 164 . . Impact . | . . . . Slashing . | . . . . Piercing . | . . . . Highest Corruption . | . . . . Average Corruption . | . . . . Corruption Purged . | . . . . Corruption Blocked . | . . . . Overload Shots . | . . . . Overflow Damage 15 | . . . 15 Projectiles 15 | . . . 15 Explosions . | . . . . Melee . | . . . . Knockbacks 11 | . 6 4 1 Impact . | . . . . Kinetic 11 | . 6 4 1 Secondary . | . . . . Self-Inflicted Damage 51 | . . . 51 Shots 2 | . . . 2 Rammed 1 | . 1 . . Targets Rammed 2 | . 2 . . Kicked 1 | . 1 . . Crushed . | . . . . Highest Temperature 254 | 3 183 15 254 Average Temperature 54 | 2 53 10 138 Received Heat Transfer 797 | . 273 . 524 Siege Activations . | . . . . Robots Corrupted . | . . . . Combat Hostiles . | . . . . Parts Fried . | . . . . Impact Corruptions . | . . . . Robots Melted . | . . . . Combat Hostiles . | . . . . Parts Melted . | . . . . Heat Transferred 675 | 50 625 . . Parts Sabotaged . | . . . . Parts Stolen . | . . . . Parts Stripped . | . . . . Power Chain Reactions 3 | 1 2 . . Alert | -11 -10 -10 -10 ------- Run | Yrd Mat Min Sub Peak Influence 251 | 15 251 8 . Initial 9 | . 9 8 . Average 41 | 4 72 2 . Maximum Alert Level 1 | . 1 . . Low Security (%) 95 | 100 92 100 . Level 1 4 | . 7 . . Level 2 . | . . . . Level 3 . | . . . . Level 4 . | . . . . Level 5 . | . . . . High Security . | . . . . Max Security . | . . . . Squads Dispatched 3 | . 3 . . Investigation 3 | . 3 . . Extermination . | . . . . Reinforcement . | . . . . Assault . | . . . . Garrison . | . . . . Intercept . | . . . . Searches Triggered . | . . . . Construction Impeded . | . . . . Haulers Reinforced . | . . . . Active Scanning Responses . | . . . . Cargo Convoy Interrupts . | . . . . Stealth | -11 -10 -10 -10 --------- Run | Yrd Mat Min Sub Distress Signals . | . . . . Communications Jammed . | . . . . Distress Signals . | . . . . Times Spotted 42 | . 20 . 22 Peak Tracking Total 5 | . 3 . 5 Tactical Retreats 2 | . . . 2 Traps | -11 -10 -10 -10 ------- Run | Yrd Mat Min Sub Traps Triggered 1 | . 1 . . Indirectly . | . . . . Trap Hack Attempts . | . . . . Triggered . | . . . . Disarmed . | . . . . Reprogrammed . | . . . . Reused . | . . . . Traps Extracted . | . . . . Installed . | . . . . Triggered . | . . . . Machines | -11 -10 -10 -10 ---------- Run | Yrd Mat Min Sub Machines Disabled 4 | . 3 . 1 Max in Single Turn 1 | . 1 . 1 Machines Repaired . | . . . . Machines Dismantled . | . . . . Machines Sabotaged . | . . . . Overloaded Fab Kills . | . . . . Hacking | -11 -10 -10 -10 --------- Run | Yrd Mat Min Sub Machines Accessed 5 | . 5 . . Terminals 4 | . 4 . . Fabricators . | . . . . Repair Stations 1 | . 1 . . Recycling Units . | . . . . Scanalyzers . | . . . . Garrison Access . | . . . . Total Hacks 21 | . 21 . . Successful 11 | . 11 . . Failed 10 | . 10 . . Catastrophic . | . . . . Database Lockouts . | . . . . Manual . | . . . . Terminals 13 | . 13 . . Fabricators . | . . . . Repair Stations 8 | . 8 . . Recycling Units . | . . . . Scanalyzers . | . . . . Garrison Access . | . . . . Terminal Hacks 4 | . 4 . . Prototype ID Bank 1 | . 1 . . Unreport Threat 1 | . 1 . . Locate Traps 1 | . 1 . . Transport Status 1 | . 1 . . Fabricator Hacks . | . . . . Repair Station Hacks 7 | . 7 . . Scan Component 4 | . 4 . . Repair 3 | . 3 . . Recycling Unit Hacks . | . . . . Scanalyzer . | . . . . Garrison Access Hacks . | . . . . Unauthorized Hacks . | . . . . Terminals . | . . . . Fabricators . | . . . . Repair Stations . | . . . . Recycling Units . | . . . . Scanalyzers . | . . . . Garrison Access . | . . . . Data Cores Recovered . | . . . . Used . | . . . . Hacking Detections 5 | . 5 . . Full Trace Events 3 | . 3 . . Feedback Events . | . . . . Feedback Blocked . | . . . . Robot Schematics Acquired . | . . . . Robots Built . | . . . . Authchips . | . . . . Time . | . . . . Total Robot Build Rating . | . . . . Part Schematics Acquired . | . . . . Parts Built . | . . . . Authchips . | . . . . Time . | . . . . Total Part Build Rating . | . . . . Parts Repaired 3 | . 3 . . Time 90 | . 90 . . Parts Recycled . | . . . . Recycled Matter . | . . . . Retrieved Matter . | . . . . Retrieved Components . | . . . . Parts Scanalyzed . | . . . . Part Schematics Acquired . | . . . . Parts Damaged . | . . . . Bothacking | -11 -10 -10 -10 ------------ Run | Yrd Mat Min Sub Used RIF Installer . | . . . . Robots Hacked . | . . . . Non-combat . | . . . . Combat . | . . . . Robot Hacks Applied . | . . . . Relay Couplers Released . | . . . . Fabnet Peak Effective % . | . . . . Robots Rewired . | . . . . Allies Hacked . | . . . . Hacks Repelled . | . . . . Allies | -11 -10 -10 -10 -------- Run | Yrd Mat Min Sub Total Allies 2 | . . 2 . Largest Group 2 | . . 2 2 Highest-Rated Group 54 | . . 54 54 Highest-Rated Ally 31 | . . 31 31 Total Orders . | . . . . Ally Attacks 2 | . . . 2 Total Damage 42 | . . . 42 Kills . | . . . . Allies Corrupted . | . . . . Allies Melted 1 | . . . 1 Intel | -11 -10 -10 -10 ------- Run | Yrd Mat Min Sub Robot Analysis Total . | . . . . Derelict Logs Recovered 1 | . . 1 . Drone Launches . | . . . . Drone Recoveries . | . . . . Exploration | -11 -10 -10 -10 ------------- Run | Yrd Mat Min Sub Turns Passed 3471 | 87 1448 1081 855 Spaces Moved 1898 | 64 723 662 449 Core 17 | 17 . . . Treads 1743 | . 632 662 449 Legs 138 | 47 91 . . Wheels . | . . . . Hover . | . . . . Flight . | . . . . Fastest Speed 50 | 50 120 160 160 Average Speed 156 | 101 154 160 160 Slowest Speed 160 | 120 160 160 160 Overloaded Moves . | . . . . Propulsion Burnouts . | . . . . Robots Hopped . | . . . . Cave-ins Triggered . | . . . . Exploration Rate (%) 56 | 5 97 98 24 Regions Visited 3 Branch Regions 2 Pre-discovered Areas 1 | . . 1 . Known Exits Taken 1 | . 1 . . Unknown Exits Taken 2 | 1 . 1 . Scrap Searched 2 | . . 1 1 Spaces Dug . | . . . . Terrain Destroyed 89 | 5 29 . 55 Melee . | . . . . Projectile . | . . . . AOE 89 | 5 29 . 55 Terrain Rammed . | . . . . Walls Destroyed . | . . . . Machines Disabled . | . . . . Actions | -11 -10 -10 -10 --------- Run | Yrd Mat Min Sub Total 2216 | 80 940 679 517 Wait 143 | . 113 14 16 Move 1895 | 63 722 661 449 Hop . | . . . . Pick Up 29 | 9 14 1 5 Fast Attach 4 | . 2 . 2 Attach 14 | 5 5 . 4 Detach . | . . . . Swap 14 | . 10 1 3 Drop 11 | . 9 . 2 Fire 104 | 3 63 2 36 Melee . | . . . . Ram . | . . . . Kick 1 | . 1 . . Crush 1 | . 1 . . Escape Stasis . | . . . . Rewire . | . . . . Trap . | . . . . Miscellaneous . | . . . . Route ------- -11/Scrapyard -10/Materials (discovered 4 exits: *Mat x3 / *Min) -10/Mines (discovered 3 exits: *Mat x2 / [*Sub]) -10/Subcaves (discovered 1 exit: [*Rec]) History --------- Turn | Location | Event 5 | -11/Scrapyard | Discovered new exit (range 15) 88 | -11/Scrapyard | Entered Materials 313 | -10/Materials | Build established: Mutant 445 | -10/Materials | Discovered new exit (range 14) 493 | -10/Materials | Repaired Grenade Launcher 533 | -10/Materials | Repaired Imp. Terrain Scanner 560 | -10/Materials | Repaired Sml. Laser 779 | -10/Materials | Discovered new exit (range 16) 1130 | -10/Materials | Discovered new exit (range 5) 1206 | -10/Materials | Identified exit to Materials 1441 | -10/Materials | Discovered exit to Materials (range 16) 1534 | -10/Materials | Identified exit to Mines 1536 | -10/Materials | Entered Mines 1764 | -10/Mines | Found a hidden stash of uninstalled traps 2018 | -10/Mines | Discovered exit to Materials (range 7) 2031 | -10/Mines | Discovered exit to Materials (range 7) 2605 | -10/Mines | Discovered new exit (range 7) 2617 | -10/Mines | Entered Subcaves 2617 | -10/Subcaves | Accompanied by 2 allies 2618 | -10/Subcaves | Shifting Twisted Machinery released Sub. Power Source 2622 | -10/Subcaves | Led the pair of lost Derelicts to an unsafe place 2624 | -10/Subcaves | Shifting Twisted Machinery released Barrage Gun 2987 | -10/Subcaves | Core integrity fell below 50% 3080 | -10/Subcaves | Lost 5 parts (1p1n1u2w) 3087 | -10/Subcaves | Discovered new exit (range 12) 3088 | -10/Subcaves | Core integrity fell below 20% 3472 | -10/Subcaves | Destroyed by Y-45 Defender with Heavy Assault Rifle Last Messages --------------- 05-L7T(R) destroyed. Acquired Scrap Shield Fragment. Dropped Scrap Shield. Acquired Scrap Shield. Dropped Scrap Shield Fragment. Acquired Scrap Shield Fragment. Acquired 6 matter. Acquired 23 matter. Acquired Sub. Power Source. Acquired 14 matter. Acquired 16 matter. Searching scrap... Found Mak. Light Armor Plating. Found Mak. Sword. Found 26 Matter. Acquired 26 matter. Acquired Mak. Light Armor Plating. Acquired 9 matter. Acquired 6 matter. The unstable cave ceiling collapses. Map ----- +----------------------------------------------------+ | ?????????????????????????????????????????????????? | | ?????????????????????????????????????????????????? | | ?????????????????????????????????????????????????? | | ?????????????????????????????????????????????????? | | ?????????????????????????????????????????????????? | | ???????????????? ??????????? ? ??????????????????? | | ???????????????? ?????????? ???????????????????? | | ???????????????? #?????????& ???????????????????? | | ???????????????? #??????? #???????????????????? | | ????????????????? ##????? #???????????????????? | | ?????????????????? #???? ##??????????????????? | | ?????????????????? #### #####??????????????? | | ??????????????????? ##?????????????? | | ???????????????????? #?????????????? | | ????????????????????# ??????????????? | | ?????????????? ????## #????????????????? | | ????????????? ???# ???????????????????? | | ???????? ### #?????????????????????? | | ???????????# ?????????????????????? | | ???????????# Y #?????????????????????? | | ??????????# #?????????????????????? | | ?????????# ? #?????????????????????? | | ????????? ????# #?????????????????????? | | ?????????? #???????# ##?????????????????????? | | ?????????? ??????????# #??????????????????????? | | ??????????????????????# @##?????????????????????? | | ????????????????????## ### #?????????????????????? | | ????????????????????# ### #?????????????????????? | | ????????????????????## # ##?????????????????????? | | ????????????????????## # ##??????????????????????? | | ???????????????????## # ##???????????????????????? | | ???????????????????# #"##????????????????????????? | | ????????????????????# #?????????????????????????? | | ????????????????????## ##????????????????????????? | | ?????????????????????# ##???????????????????????? | | ?????????????????????# ##???????????????????????? | | ?????????????????????## /##??????????????????????? | | ??????????????????????# #?#????????????????????? | | ??????????????????????# # #??????????????????????? | | ???????#??????????????# # #??????????????????????? | | #?????????????????#???# # #??????????????????????? | | ??????####????????#??## # #????#?????????????????? | | ?????## #???????????# ## #??????????????????????? | | ?????# #?????????##?# # #???#??????????????????? | | ???## #?????#???# ### ###?????????????????????? | | ??# #??????????# ##???????????????????????? | | ### ##?????#???# #??#????????????????????? | | # ##????????## ##???????????#???????????? | | ##????????## ##????#??????????????????? | | ? ##??#???## ##???#??????????????????? | +----------------------------------------------------+ Best States ------------- Heat Dissipation 25 Energy Generation 15 Energy Capacity 200 Matter Stores 300 Matter Capacity 300 Sight Range 16 Terrain Scan Range 16 Terrain Scan Density 10 Armor Coverage 100 Evasion (%) 55 Recoil Reduction 2 Item Schematics ----------------- None Robot Schematics ------------------ None Fabricated ------------ Nothing Alien Tech Used ----------------- None Achievements -------------- None Challenges ------------ None Game ------ Seed ThermalGyrokineticPropulsion Manual? 0 Play Time 00:21:13 Cumulative 12.8 hours Start 2024.04.01 @ 12:11:32 End 2024.04.01 @ 12:54:10 Sessions 1 Manual Loads 0 Difficulty Rogue Special Mode None Game No. 28 Rogue 27 Adventurer 1 Explorer 0 Win Type - Total 0 Types 0/0/0/0/0/0/0/0/0 Lore% 7 Gallery% 17 Achievement% 17 Wizard Run 0 Options --------- Layout 1 ASCII 0 Keyboard 0 Movement Mouse Keybinds 0 Fullscreen 2 Font 24/Terminus Map View 50x35 Zoom Use 0% Tactical HUD 0 Map Filters NONE Filters NONE Steam 1 RUN: ff6cf8e3-8350-4c0d-b79b-ffccda56483e